bitfinex-derivatives/quotes_BTCF0:USTF0_20250313
["timestamp","ask_amount","ask_price","bid_price","bid_amount"]
[1741829261001,0.01163392,83698.0,83697.0,0.63345526]
[1741829261702,0.01163392,83698.0,83697.0,0.64345526]
[1741829262404,0.01163392,83698.0,83697.0,0.63345526]
[1741829262998,0.01163392,83698.0,83697.0,2.39105314]
[1741829263605,0.01163392,83698.0,83697.0,2.65105314]
[1741829263796,0.01163392,83698.0,83697.0,2.39105314]
[1741829266704,0.01163392,83698.0,83697.0,2.02037526]
[1741829267311,0.12593392,83698.0,83697.0,2.02037526]
[1741829267507,0.12593392,83698.0,83697.0,1.89577526]
[1741829267811,0.12593392,83698.0,83697.0,1.97375526]
[1741829268600,0.12593392,83698.0,83697.0,1.84927526]
[1741829268801,0.12593392,83698.0,83697.0,1.38812]
[1741829268802,0.24544452,83698.0,83697.0,1.38812]
[1741829269009,0.24544452,83698.0,83697.0,1.51244]
[1741829269607,0.25712287,83698.0,83697.0,1.51244]
[1741829269908,0.25712287,83698.0,83697.0,1.631952]
[1741829270709,0.25712287,83698.0,83697.0,1.51244]
[1741829271209,0.1195149,83695.0,83694.0,0.47788312]
[1741829271416,0.1195149,83695.0,83694.0,0.47724312]
[1741829271794,0.13114882,83695.0,83694.0,0.47724312]
[1741829272205,0.01163392,83695.0,83694.0,0.1195161]
[1741829272809,0.01163392,83695.0,83694.0,0.2350161]
[1741829276111,0.13114882,83695.0,83694.0,0.2350161]
[1741829276310,0.13114882,83695.0,83694.0,0.3589361]
[1741829277109,0.13114882,83695.0,83694.0,0.12392]
[1741829279521,0.1195177,83693.0,83692.0,0.28571491]
[1741829279819,0.13115162,83693.0,83692.0,0.28571491]
[1741829280220,0.24165162,83693.0,83692.0,0.28571491]
[1741829280428,0.12213392,83693.0,83692.0,0.40523401]
[1741829280609,0.06673392,83693.0,83692.0,0.51903401]
[1741829282621,0.01163392,83693.0,83692.0,0.78903401]
[1741829283323,0.01163392,83693.0,83692.0,0.5233191]
[1741829284211,0.01163392,83693.0,83692.0,0.3838]
[1741829284429,0.01163392,83693.0,83692.0,0.5033191]
[1741829285012,0.01163392,83693.0,83692.0,0.2333191]
[1741829285418,0.01163392,83693.0,83692.0,0.1138]
[1741829285623,0.13115162,83693.0,83692.0,0.1138]
[1741829286437,0.30145162,83693.0,83692.0,0.1138]
[1741829286626,0.30145162,83693.0,83692.0,0.057]
[1741829287421,0.31351286,83693.0,83692.0,0.12356]
[1741829289314,0.31351286,83693.0,83686.0,0.41612702]
[1741829289315,0.34399516,83693.0,83686.0,0.35772702]
[1741829289519,0.1195391,83681.0,83680.0,0.1195289]
[1741829289727,0.1195391,83681.0,83680.0,0.179295]
[1741829290019,0.1792966,83686.0,83685.0,0.1195291]
[1741829290626,0.1907614,83686.0,83685.0,0.1195291]
[1741829291229,0.0712291,83686.0,83685.0,0.1195291]
[1741829291734,0.0114648,83686.0,83685.0,0.1758291]
[1741829291930,0.1309925,83686.0,83685.0,0.1758291]
[1741829292424,0.1309925,83686.0,83685.0,0.2310291]
[1741829292632,0.1309925,83686.0,83685.0,0.2320291]
[1741829293027,0.1309925,83686.0,83685.0,0.3546691]
[1741829293621,0.1309925,83686.0,83685.0,0.23514]
[1741829293942,0.1309925,83686.0,83685.0,0.3546691]
[1741829295125,0.1195277,83686.0,83685.0,0.3546691]
[1741829295430,0.2222,83702.0,83692.0,0.1195191]
[1741829295431,0.0554,83693.0,83692.0,0.1195191]
[1741829295636,0.1745177,83693.0,83692.0,0.1195191]
[1741829295823,0.2317177,83693.0,83692.0,0.1195191]
[1741829296624,0.2317177,83693.0,83692.0,0.2300191]
[1741829297733,0.1745177,83693.0,83692.0,0.2300191]
[1741829297931,0.1195177,83693.0,83692.0,0.2300191]
[1741829298134,0.1195177,83693.0,83692.0,0.1115]
[1741829298436,0.1741177,83693.0,83692.0,0.2310191]
[1741829298735,0.00017883,83694.0,83693.0,0.1195177]
[1741829298922,0.00017883,83694.0,83693.0,0.2904177]
[1741829299735,0.00017883,83694.0,83693.0,0.2304177]
[1741829300028,0.00017883,83694.0,83693.0,0.46030361]
[1741829300428,0.00017883,83694.0,83693.0,0.48030361]
[1741829300635,0.00017883,83694.0,83693.0,0.46030361]
[1741829302941,0.1,83700.0,83693.0,0.48030361]
[1741829303131,0.1,83700.0,83699.0,0.1195091]
[1741829303335,0.1,83700.0,83699.0,0.3695091]
[1741829303529,0.2195077,83700.0,83699.0,0.3695091]
[1741829304034,0.1,83700.0,83699.0,0.4849091]
[1741829306129,0.2195077,83700.0,83699.0,0.3654]
[1741829306330,0.1,83700.0,83699.0,0.4859091]
[1741829308931,0.1,83700.0,83699.0,0.2359091]
[1741829309346,0.1,83700.0,83699.0,0.4959091]
[1741829309542,0.1,83700.0,83699.0,0.2359091]
[1741829309932,0.1,83700.0,83699.0,0.3585091]
[1741829310332,0.1551,83700.0,83699.0,0.3585091]
[1741829310641,0.28601959,83700.0,83699.0,0.001]
[1741829310836,0.34541959,83700.0,83699.0,0.001]
[1741829311437,0.34541959,83700.0,83699.0,0.1205091]
[1741829312932,0.34541959,83700.0,83699.0,0.1790091]
[1741829313132,0.22591189,83700.0,83699.0,0.1790091]
[1741829313539,0.34541959,83700.0,83699.0,0.1790091]
[1741829316746,0.1195177,83693.0,83692.0,0.00068]
[1741829317044,0.1195291,83685.0,83684.0,0.06]
[1741829317249,0.1195291,83685.0,83684.0,0.18236]
[1741829317446,0.0597653,83684.0,83683.0,0.12232]
[1741829317646,0.1704653,83684.0,83683.0,0.17972]
[1741829317956,0.30140779,83684.0,83683.0,0.17972]
[1741829318557,0.30140779,83684.0,83679.0,0.21451622]
[1741829318558,0.18187719,83684.0,83679.0,0.21451622]
[1741829318852,0.1195363,83680.0,83679.0,0.21451622]
[1741829319538,0.13094819,83680.0,83679.0,0.21451622]
[1741829319738,0.24384819,83680.0,83679.0,0.21451622]
[1741829320340,0.24384819,83680.0,83677.0,0.00017922]
[1741829320341,0.1195391,83678.0,83677.0,0.00017922]
[1741829320736,0.13095099,83678.0,83677.0,0.00017922]
[1741829322360,0.13095099,83678.0,83668.0,0.12232]
[1741829322361,0.119552,83669.0,83668.0,0.12232]
[1741829322747,0.1744,83670.0,83667.0,0.0581]
[1741829322944,0.01141189,83669.0,83666.0,0.21451622]
[1741829323149,0.1195549,83667.0,83666.0,0.21451622]
[1741829323655,0.13096679,83667.0,83666.0,0.21451622]
[1741829323857,0.18756679,83667.0,83666.0,0.21451622]
[1741829324149,0.18656679,83667.0,83666.0,0.21451622]
[1741829324744,0.1195634,83662.0,83661.0,0.1195627]
[1741829324940,0.1195634,83662.0,83661.0,0.1789627]
[1741829325245,0.18687529,83662.0,83661.0,0.1789627]
[1741829325650,0.24147529,83662.0,83661.0,0.1789627]
[1741829325850,0.18587529,83662.0,83661.0,0.1789627]
[1741829326357,0.1744634,83662.0,83661.0,0.1819627]
[1741829326860,0.1744634,83662.0,83661.0,0.2434627]
[1741829327647,0.1185634,83662.0,83661.0,0.2434627]
[1741829329050,0.1185634,83662.0,83661.0,0.1239]
[1741829329655,0.1736634,83662.0,83661.0,0.1239]
[1741829329854,0.1736634,83662.0,83661.0,0.0645]
[1741829331947,0.18564199,83662.0,83661.0,0.0645]
[1741829333353,0.06707859,83662.0,83659.0,0.00017922]
[1741829333554,0.1195649,83660.0,83659.0,0.00017922]
[1741829333954,0.1781649,83660.0,83659.0,0.00017922]
[1741829334559,0.1781649,83660.0,83659.0,0.00317922]
[1741829335462,0.1781649,83660.0,83659.0,0.00617922]
[1741829336767,0.1781649,83660.0,83659.0,0.00517922]
[1741829337171,0.0586,83660.0,83640.0,0.12208]
[1741829337472,0.1195792,83650.0,83649.0,0.0544]
[1741829338366,0.2352792,83650.0,83649.0,0.0544]
[1741829339161,0.1195792,83650.0,83649.0,0.2379806]
[1741829340358,0.1045792,83650.0,83649.0,0.2922806]
[1741829340559,0.1045792,83650.0,83649.0,0.2992806]
[1741829341473,0.1075792,83650.0,83649.0,0.2852806]
[1741829342365,0.1075792,83650.0,83649.0,0.1657]
[1741829343572,0.1055792,83650.0,83649.0,0.1657]
[1741829343869,0.1075792,83650.0,83649.0,0.1657]
[1741829344175,0.1075792,83650.0,83649.0,0.2852806]
[1741829344558,0.1085792,83650.0,83649.0,0.2852806]
[1741829345474,0.1075792,83650.0,83649.0,0.5552806]
[1741829345774,0.1085792,83650.0,83649.0,0.5552806]
[1741829346073,0.1075792,83650.0,83649.0,0.5552806]
[1741829346277,0.1085792,83650.0,83649.0,0.5552806]
[1741829347179,0.004,83650.0,83649.0,0.5552806]
[1741829347476,0.1235792,83650.0,83649.0,0.2852806]
[1741829347674,0.1225792,83650.0,83649.0,0.2852806]
[1741829347865,0.1225792,83650.0,83649.0,0.5652806]
[1741829348476,0.003,83650.0,83649.0,0.5652806]
[1741829348871,0.1225792,83650.0,83649.0,0.2852806]
[1741829349561,0.1225792,83650.0,83649.0,0.1657]
[1741829350076,0.1225792,83650.0,83649.0,0.2852806]
[1741829350264,0.1225792,83650.0,83649.0,0.1657]
[1741829350661,0.1225792,83650.0,83640.0,0.00890939]
[1741829350662,0.1195906,83642.0,83640.0,0.00890939]
[1741829350975,0.1195906,83642.0,83641.0,0.23687122]
[1741829351172,0.1823756,83650.0,83649.0,0.1195806]
[1741829351764,0.1793756,83650.0,83649.0,0.1195806]
[1741829352084,0.1195764,83652.0,83651.0,0.1195749]
[1741829352875,0.1195764,83652.0,83651.0,0.2355749]
[1741829353083,0.10698268,83655.0,83654.0,0.1195734]
[1741829353273,0.22655468,83655.0,83654.0,0.1195734]
[1741829354180,0.28435468,83655.0,83654.0,0.1195734]
[1741829354378,0.28835468,83655.0,83654.0,0.2411734]
[1741829354778,0.29035468,83655.0,83654.0,0.2411734]
[1741829356678,0.29035468,83655.0,83654.0,0.1216]
[1741829356880,0.17078268,83655.0,83645.0,0.21451622]
[1741829357079,0.1195849,83646.0,83645.0,0.21451622]
[1741829357781,0.1195849,83646.0,83645.0,0.33410252]
[1741829357979,0.2362849,83646.0,83645.0,0.33410252]
[1741829358382,0.2362849,83646.0,83645.0,0.33510252]
[1741829359284,0.24837922,83646.0,83645.0,0.21551622]
[1741829359587,0.24837922,83646.0,83645.0,0.21451622]
[1741829359784,0.1195892,83643.0,83642.0,0.0605]
[1741829360775,0.2363892,83643.0,83642.0,0.0605]
[1741829361171,0.2363892,83643.0,83642.0,0.0615]
[1741829361674,0.2363892,83643.0,83642.0,0.1810906]
[1741829361881,0.2363892,83643.0,83642.0,0.2387906]
[1741829362772,0.2363892,83643.0,83642.0,0.1192]
[1741829363988,0.34337188,83643.0,83642.0,0.1192]
[1741829365273,0.34337188,83643.0,83642.0,0.0615]
[1741829365475,0.34337188,83643.0,83642.0,0.1179]
[1741829365982,0.34337188,83643.0,83642.0,0.2374906]
[1741829366183,0.28287188,83643.0,83642.0,0.2374906]
[1741829370189,0.28287188,83643.0,83642.0,0.1179]
[1741829370776,0.28287188,83643.0,83642.0,0.2374906]
[1741829371486,0.1758892,83643.0,83642.0,0.2374906]
[1741829371884,0.1758892,83643.0,83642.0,0.1179]
[1741829372280,0.1758892,83643.0,83642.0,0.2374906]
[1741829372485,0.1758892,83643.0,83642.0,0.1179]
[1741829374088,0.1758892,83643.0,83642.0,0.2374906]
[1741829375885,0.1758892,83643.0,83642.0,0.1179]
[1741829376288,0.1195868,83645.0,83644.0,0.0597933]
[1741829376477,0.14243624,83648.0,83647.0,0.1195834]
[1741829376677,0.14243624,83648.0,83647.0,0.3695834]
[1741829377182,0.14243624,83648.0,83647.0,0.5501834]
[1741829379282,0.14443624,83648.0,83647.0,0.5501834]
[1741829380080,0.14343624,83648.0,83647.0,0.5501834]
[1741829381383,0.001,83648.0,83647.0,0.5501834]
[1741829382793,0.0597644,83686.0,83657.0,0.1195691]
[1741829382992,0.1161,83664.0,83657.0,0.2411691]
[1741829383190,0.11974692,83658.0,83657.0,0.2411691]
[1741829383892,0.12274692,83658.0,83657.0,0.2411691]
[1741829384086,0.12774692,83658.0,83657.0,0.2411691]
[1741829385504,0.12774692,83658.0,83654.0,0.1188]
[1741829385505,0.00817922,83658.0,83654.0,0.1188]
[1741829385694,0.1195792,83650.0,83643.0,0.1195891]
[1741829385998,0.1195792,83650.0,83641.0,0.00017922]
[1741829386293,0.1195792,83650.0,83647.0,0.1216]
[1741829387087,0.1205792,83650.0,83647.0,0.1216]
[1741829387598,0.1225792,83650.0,83647.0,0.1216]
[1741829387902,0.13461861,83650.0,83647.0,0.1216]
[1741829389289,0.119582,83648.0,83647.0,0.1216]
[1741829389990,0.0597936,83645.0,83641.0,0.06047922]
[1741829390293,0.1195906,83642.0,83641.0,0.00017922]
[1741829391199,0.1195906,83642.0,83641.0,0.00217922]
[1741829391396,0.1195906,83642.0,83641.0,0.00317922]
[1741829396097,0.1195906,83642.0,83641.0,0.12277122]
[1741829396701,0.1195906,83642.0,83641.0,0.24277122]
[1741829397988,0.1195906,83642.0,83641.0,0.36437122]
[1741829399097,0.14243624,83645.0,83643.0,0.1195877]
[1741829399307,0.2360758,83649.0,83648.0,0.119582]
[1741829399893,0.2360758,83649.0,83648.0,0.01210445]
[1741829400498,0.1793758,83649.0,83648.0,0.13168645]
[1741829400703,0.0597904,83649.0,83648.0,0.13168645]
[1741829401087,0.0607904,83649.0,83648.0,0.01210445]
[1741829401301,0.1793904,83649.0,83648.0,0.01210445]
[1741829402000,0.1803904,83649.0,83648.0,0.01210445]
[1741829402698,0.2394904,83649.0,83648.0,0.01210445]
[1741829403909,0.1195849,83646.0,83645.0,0.2391704]
[1741829404107,0.002,83649.0,83648.0,0.119582]
[1741829404308,0.002,83649.0,83648.0,0.359582]
[1741829404806,0.003,83649.0,83648.0,0.369582]
[1741829405206,0.17694975,83656.0,83653.0,0.0597869]
[1741829405506,0.17694975,83656.0,83655.0,0.119572]
[1741829405808,0.14241035,83657.0,83656.0,0.1195706]
[1741829406003,0.14241035,83657.0,83656.0,0.3795706]
[1741829406398,1e-08,83658.0,83656.0,0.3795706]
[1741829406596,1e-08,83658.0,83657.0,0.1195691]
[1741829406907,0.21126723,83668.0,83667.0,0.1195549]
[1741829407102,0.21126723,83668.0,83667.0,0.5011149]
[1741829407713,0.21126723,83668.0,83667.0,0.2411149]
[1741829407909,0.33082063,83668.0,83667.0,0.12156]
[1741829408405,0.1793431,83664.0,83663.0,0.11956]
[1741829408601,0.0567,83667.0,83666.0,0.1195563]
[1741829408794,0.21126723,83668.0,83666.0,0.1195563]
[1741829408995,0.21126723,83668.0,83667.0,0.1195549]
[1741829409206,0.00017933,83676.0,83675.0,0.1195434]
[1741829409403,0.00017933,83676.0,83675.0,0.3911034]
[1741829409605,0.00017933,83676.0,83675.0,0.2411034]
[1741829409806,0.00017933,83676.0,83675.0,0.2911034]
[1741829410197,0.00017933,83676.0,83675.0,0.2411034]
[1741829410395,0.00017933,83676.0,83675.0,0.3011034]
[1741829410706,0.00017933,83676.0,83675.0,0.3111034]
[1741829410911,0.1775148,83696.0,83695.0,0.1195149]
[1741829411101,0.1195148,83696.0,83695.0,0.2410749]
[1741829411493,0.058,83698.0,83697.0,0.119512]
[1741829411697,0.1,83700.0,83699.0,0.1195091]
[1741829411909,0.2195077,83700.0,83699.0,0.1195091]
[1741829412309,0.1,83700.0,83699.0,0.1195091]
[1741829412708,0.1,83700.0,83699.0,0.1781091]
[1741829412907,0.2195077,83700.0,83699.0,0.1781091]
[1741829413209,0.2784077,83700.0,83699.0,0.1781091]
[1741829413509,0.2834077,83700.0,83699.0,0.1781091]
[1741829414714,0.2874077,83700.0,83699.0,0.1791091]
[1741829416410,0.2874077,83700.0,83699.0,0.0596]
[1741829416717,0.2874077,83700.0,83699.0,0.1205091]
[1741829417210,0.2874077,83700.0,83699.0,0.1764091]
[1741829417404,0.2874077,83700.0,83699.0,0.2356091]
[1741829417601,0.1679,83700.0,83699.0,0.2356091]
[1741829418613,0.109,83700.0,83699.0,0.2356091]
[1741829420904,0.109,83700.0,83699.0,0.3756091]
[1741829422013,0.109,83700.0,83699.0,0.2356091]
[1741829422806,0.08706973,83700.0,83699.0,0.2956091]
[1741829423416,0.08706973,83700.0,83699.0,0.3156091]
[1741829423618,0.08706973,83700.0,83699.0,0.2956091]
[1741829424213,0.08706973,83700.0,83699.0,0.2556091]
[1741829425321,0.08706973,83700.0,83699.0,0.2356091]
[1741829425615,0.06526167,83700.0,83699.0,0.001]
[1741829425917,0.12546167,83700.0,83699.0,0.001]
[1741829426116,0.12546167,83700.0,83699.0,0.1205091]
[1741829426519,0.18776167,83700.0,83699.0,0.1205091]
[1741829430216,0.1225,83700.0,83699.0,0.1205091]
[1741829430925,0.2420077,83700.0,83699.0,0.1800091]
[1741829437016,0.2420077,83700.0,83699.0,0.0605]
[1741829437523,0.2420077,83700.0,83699.0,0.1800091]
[1741829438027,0.2420077,83700.0,83699.0,0.1205091]
[1741829439014,0.2420077,83700.0,83699.0,0.2381091]
[1741829442024,0.0623,83700.0,83699.0,0.2381091]
[1741829442226,0.1194945,83710.0,83709.0,0.1194949]
[1741829442616,0.1766945,83710.0,83709.0,0.1194949]
[1741829442924,0.1144,83710.0,83709.0,0.1194949]
[1741829443329,0.2348934,83710.0,83709.0,0.1204949]
[1741829443625,0.1164,83710.0,83709.0,0.1214949]
[1741829443824,0.0592,83710.0,83709.0,0.1214949]
[1741829445234,0.0592,83710.0,83709.0,0.13365251]
[1741829445525,0.0592,83710.0,83709.0,0.1214949]
[1741829445727,0.0592,83710.0,83709.0,0.1204949]
[1741829446026,0.1193,83710.0,83709.0,0.1194949]
[1741829446725,0.1193,83710.0,83709.0,0.13135194]
[1741829449033,0.0592,83710.0,83709.0,0.13135194]
[1741829449826,0.0592,83710.0,83709.0,0.24825194]
[1741829450227,0.002,83710.0,83709.0,0.32825194]
[1741829450433,0.0562,83727.0,83719.0,0.1194806]
[1741829450732,0.1756695,83727.0,83719.0,0.2409606]
[1741829450922,0.0562,83727.0,83719.0,0.2409606]
[1741829451116,0.0562,83727.0,83719.0,0.3546606]
[1741829451930,0.0562,83727.0,83719.0,0.3566606]
[1741829452528,0.1756692,83727.0,83719.0,0.3576606]
[1741829452724,0.0562,83727.0,83719.0,0.3576606]
[1741829452920,0.1194706,83726.0,83719.0,0.57222704]
[1741829453327,0.0568,83725.0,83719.0,0.57222704]
[1741829453926,0.1762721,83725.0,83719.0,0.57222704]
[1741829454119,0.0568,83725.0,83719.0,0.33126644]
[1741829454326,0.12127214,83720.0,83719.0,0.21756644]
[1741829454727,0.12127214,83720.0,83719.0,0.33704704]
[1741829454930,0.00179294,83720.0,83719.0,0.33704704]
[1741829455236,0.12429294,83720.0,83719.0,0.33704704]
[1741829455536,0.24377214,83720.0,83719.0,0.45214704]
[1741829455720,0.24377214,83720.0,83719.0,0.44914704]
[1741829455923,0.12429294,83720.0,83719.0,0.45014704]
[1741829456124,0.24377214,83720.0,83719.0,0.45014704]
[1741829456535,0.24377214,83720.0,83719.0,0.44914704]
[1741829457332,0.24377214,83720.0,83719.0,0.2345806]
[1741829458130,0.12429294,83720.0,83715.0,0.00915124]
[1741829458336,0.1194849,83716.0,83715.0,0.1194863]
[1741829459225,0.2345849,83716.0,83715.0,0.1204863]
[1741829459436,0.2345849,83716.0,83715.0,0.1778863]
[1741829459735,0.2345849,83716.0,83715.0,0.1768863]
[1741829460036,0.2345849,83716.0,83715.0,0.1778863]
[1741829461031,0.2345849,83716.0,83715.0,0.001]
[1741829461420,0.1194906,83712.0,83711.0,0.00017922]
[1741829462341,0.1811906,83712.0,83711.0,0.00017922]
[1741829474145,0.1194906,83712.0,83711.0,0.00017922]
[1741829475045,0.1757906,83712.0,83711.0,0.00017922]
[1741829475341,0.0563,83712.0,83694.0,0.12148]
[1741829475533,0.1195091,83699.0,83698.0,0.0565]
[1741829476347,0.13134472,83699.0,83698.0,0.0565]
[1741829476733,0.13134472,83699.0,83698.0,0.1760106]
[1741829477246,0.1195091,83699.0,83698.0,0.1760106]
[1741829477435,0.14296965,83705.0,83699.0,0.059754]
[1741829477740,0.14296965,83705.0,83704.0,0.1194992]
[1741829477940,0.08678206,83710.0,83709.0,0.1194949]
[1741829478128,0.08678206,83710.0,83709.0,0.5010149]
[1741829478634,0.08678206,83710.0,83709.0,0.6510149]
[1741829479236,0.08678206,83710.0,83709.0,0.6210149]
[1741829479445,0.08678206,83710.0,83709.0,0.4710149]
[1741829480141,0.08678206,83710.0,83709.0,0.5110149]
[1741829480446,0.00179294,83720.0,83709.0,0.35152]
[1741829480635,0.00179294,83720.0,83719.0,0.1194806]
[1741829480835,0.00179294,83720.0,83719.0,0.2409606]
[1741829481640,0.00179294,83720.0,83719.0,0.36334803]
[1741829481833,0.00179294,83720.0,83719.0,0.48334803]
[1741829482030,0.1178,83738.0,83719.0,0.53386743]
[1741829482343,0.1791863,83737.0,83736.0,0.1194549]
[1741829482539,0.1194477,83744.0,83743.0,0.1194413]
[1741829482948,0.1194477,83744.0,83743.0,0.2388837]
[1741829483140,0.1206,83744.0,83743.0,0.2388837]
[1741829483342,0.1194433,83746.0,83745.0,0.1194435]
[1741829483542,0.1750433,83746.0,83745.0,0.1194435]
[1741829483739,0.0556,83746.0,83743.0,0.1194413]
[1741829483938,0.1194449,83744.0,83743.0,0.1194413]
[1741829484138,0.0597205,83747.0,83736.0,0.12144]
[1741829484139,0.0597263,83740.0,83738.0,0.01215761]
[1741829484443,0.0597263,83740.0,83736.0,0.12144]
[1741829484444,0.0587263,83740.0,83739.0,0.1194521]
[1741829485148,0.0597242,83742.0,83741.0,0.1194492]
[1741829486551,0.0607242,83742.0,83741.0,0.1204492]
[1741829486951,0.001,83742.0,83741.0,0.1204492]
[1741829489451,0.001,83742.0,83741.0,0.3904492]
[1741829491851,0.001,83742.0,83741.0,0.1204492]
[1741829492050,0.001,83742.0,83741.0,0.3804492]
[1741829494136,0.001,83742.0,83741.0,0.5018892]
[1741829496567,0.001,83742.0,83741.0,0.5118892]
[1741829497940,0.00179181,83762.0,83741.0,0.5118892]
[1741829497941,0.00179181,83762.0,83741.0,0.48874]
[1741829498143,0.00179181,83762.0,83761.0,0.1194207]
[1741829498349,0.00179181,83762.0,83761.0,0.3008207]
[1741829498548,0.00179181,83762.0,83761.0,0.2408207]
[1741829499455,0.1194155,83765.0,83764.0,0.1194164]
[1741829499758,0.1754155,83765.0,83764.0,0.13105103]
[1741829501139,0.1754155,83765.0,83764.0,0.13205103]
[1741829501344,0.1754155,83765.0,83764.0,0.13305103]
[1741829501741,0.056,83765.0,83764.0,0.13305103]
[1741829501945,0.056,83765.0,83764.0,0.19395103]
[1741829502351,0.1194013,83775.0,83774.0,0.1194007]
[1741829502557,0.2354013,83775.0,83774.0,0.2408007]
[1741829503448,0.116,83775.0,83774.0,0.2408007]
[1741829503651,0.116,83775.0,83774.0,0.2418007]
[1741829504346,0.116,83775.0,83774.0,0.2428007]
[1741829504556,0.2354007,83775.0,83774.0,0.2428007]
[1741829505455,0.2222,83789.0,83774.0,0.1334]
[1741829505659,0.0596957,83783.0,83782.0,0.119385]
[1741829506962,0.1791001,83777.0,83776.0,0.1790898]
[1741829507258,0.0596994,83777.0,83776.0,0.1790898]
[1741829508458,0.0589,83778.0,83777.0,0.1193979]
[1741829508853,0.116,83778.0,83777.0,0.1193979]
[1741829510164,0.2353965,83778.0,83777.0,0.1193979]
[1741829510552,0.2353965,83778.0,83777.0,0.13228404]
[1741829510956,0.116,83778.0,83777.0,0.13228404]
[1741829511465,0.116,83778.0,83777.0,0.19178404]
[1741829512266,0.1724,83778.0,83777.0,0.19178404]
[1741829512666,0.1724,83778.0,83777.0,0.24818404]
[1741829513054,0.2917965,83778.0,83777.0,0.24818404]
[1741829513365,0.2917965,83778.0,83777.0,0.13228404]
[1741829514457,0.1724,83778.0,83777.0,0.13228404]
[1741829514660,0.1724,83778.0,83777.0,0.26228404]
[1741829514958,0.1724,83778.0,83777.0,0.13228404]
[1741829515165,0.1724,83778.0,83777.0,0.18868404]
[1741829516770,0.2917965,83778.0,83777.0,0.001]
[1741829517368,0.1194022,83774.0,83773.0,0.01196975]
[1741829517963,0.1194022,83774.0,83773.0,0.13332975]
[1741829518270,0.1791022,83774.0,83773.0,0.13332975]
[1741829518468,0.1791022,83774.0,83773.0,0.25273335]
[1741829519075,0.1791022,83774.0,83773.0,0.31013335]
[1741829519572,0.0597,83774.0,83773.0,0.31013335]
[1741829520256,0.0597,83774.0,83773.0,0.58013335]
[1741829520465,0.0597,83774.0,83773.0,0.36543335]
[1741829520668,0.1791022,83774.0,83773.0,0.36543335]
[1741829520868,0.0597,83774.0,83773.0,0.43543335]
[1741829521165,0.0597,83774.0,83773.0,0.36543335]
[1741829521364,0.0597,83774.0,83773.0,0.59543335]
[1741829522075,0.0597,83774.0,83773.0,0.61543335]
[1741829522666,0.0597,83774.0,83773.0,0.36543335]
[1741829524476,0.0597,83774.0,83773.0,0.62543335]
[1741829526276,0.0597,83774.0,83773.0,0.91105461]
[1741829527268,0.1791022,83774.0,83773.0,0.65105461]
[1741829528376,0.0597,83774.0,83773.0,0.36543335]
[1741829528768,0.0597,83774.0,83773.0,0.64543335]
[1741829528974,0.21126723,83808.0,83773.0,0.78602975]
[1741829529171,0.0591,83797.0,83796.0,0.1193708]
[1741829529368,0.0591,83797.0,83796.0,0.5006908]
[1741829530180,0.21126723,83808.0,83799.0,0.1193665]
[1741829530480,0.0591,83807.0,83799.0,0.3793665]
[1741829530782,0.21126723,83804.0,83799.0,0.3793665]
[1741829530970,0.21126723,83804.0,83799.0,0.4954665]
[1741829531169,0.0583,83803.0,83799.0,0.50744023]
[1741829533676,0.21126723,83804.0,83799.0,0.50744023]
[1741829534586,0.0573,83803.0,83799.0,0.50744023]
[1741829535771,0.05979,83886.0,83799.0,0.50744023]
[1741829535974,0.1186,83812.0,83799.0,0.50744023]
[1741829536170,0.33058023,83837.0,83836.0,0.1193138]
[1741829536376,0.33057963,83837.0,83836.0,0.12132]
[1741829537373,0.21126723,83837.0,83836.0,0.2426338]
[1741829537983,0.32896723,83837.0,83836.0,0.2426338]
[1741829538276,0.32896723,83837.0,83836.0,0.25444199]
[1741829538473,0.21126723,83837.0,83836.0,0.34444199]
[1741829538682,0.21126723,83837.0,83836.0,0.47372177]
[1741829538987,0.08558841,83843.0,83842.0,0.1193053]
[1741829539189,0.08558841,83843.0,83842.0,0.4793053]
[1741829539381,0.08558841,83843.0,83842.0,0.3593053]
[1741829539687,0.11989961,83846.0,83845.0,0.119301]
[1741829539891,0.0596512,83844.0,83836.0,0.01280819]
[1741829540073,0.1192973,83850.0,83849.0,0.1192948]
[1741829540274,0.0596422,83857.0,83854.0,0.119287]
[1741829540481,0.0567,83856.0,83855.0,0.1192868]
[1741829540679,0.1156,83856.0,83855.0,0.1192868]
[1741829540880,0.0567,83856.0,83855.0,0.1192868]
[1741829541079,0.0567,83856.0,83855.0,0.3692868]
[1741829541673,0.21376719,83861.0,83860.0,0.1192797]
[1741829541876,0.21376719,83861.0,83860.0,0.4805597]
[1741829542070,0.21376719,83861.0,83860.0,0.2405597]
[1741829542287,0.21376719,83861.0,83860.0,0.50220946]
[1741829542480,0.21376719,83861.0,83860.0,0.52220946]
[1741829542682,0.21376719,83861.0,83860.0,1.88832946]
[1741829542888,0.21376719,83861.0,83860.0,1.76704946]
[1741829543089,0.21376719,83861.0,83860.0,1.88828946]
[1741829543285,0.21376719,83861.0,83860.0,1.90828946]
[1741829543592,0.21376719,83861.0,83860.0,1.90928946]
[1741829543889,0.0564,83875.0,83860.0,1.90925541]
[1741829544094,0.0564,83875.0,83874.0,0.1192598]
[1741829544277,0.0564,83875.0,83874.0,0.2404998]
[1741829544686,0.0618,83888.0,83887.0,0.1192413]
[1741829544887,0.1810399,83888.0,83887.0,0.1192413]
[1741829545482,0.0618,83888.0,83887.0,0.1192413]
[1741829545990,0.0618,83888.0,83887.0,0.1202413]
[1741829546296,0.1189,83888.0,83887.0,0.1202413]
[1741829547485,0.1189,83888.0,83887.0,0.1212413]
[1741829548590,0.1189,83888.0,83887.0,0.1202413]
[1741829549297,0.2381399,83888.0,83887.0,0.1222]
[1741829550285,0.2381399,83888.0,83864.0,0.0596366]
[1741829550487,0.1192683,83868.0,83867.0,0.1212]
[1741829550694,0.1192555,83878.0,83877.0,0.1192527]
[1741829551098,0.1192541,83878.0,83877.0,0.1192527]
[1741829551298,0.07394442,83888.0,83868.0,0.0596341]
[1741829551603,0.1788938,83874.0,83873.0,0.1192609]
[1741829553204,0.1788938,83874.0,83873.0,0.2404609]
[1741829553802,0.1788938,83874.0,83873.0,0.2404612]
[1741829554000,0.1798938,83874.0,83873.0,0.2404612]
[1741829554196,0.001,83874.0,83866.0,0.00017889]
[1741829554398,0.1192683,83868.0,83867.0,0.1212]
[1741829556306,0.1192683,83868.0,83860.0,1.38676]
[1741829556307,0.1192783,83861.0,83860.0,0.00064]
[1741829556490,0.1192854,83856.0,83855.0,0.1212]
[1741829556891,0.1192996,83846.0,83838.0,0.0596552]
[1741829557093,0.1193053,83842.0,83841.0,0.45372482]
[1741829557290,0.1193053,83842.0,83841.0,0.33441862]
[1741829558101,0.1193053,83842.0,83841.0,0.21321862]
[1741829559009,0.1193053,83842.0,83841.0,0.12021862]
[1741829559205,0.1193053,83842.0,83841.0,0.23952532]